Cogmind - Beta 15 @@@ ROGUE MODE // 2025.06.10 @ 22:05:20 Player: Xcalibur Result: Destroyed by G-67 Veteran with Plasma Rifle Performance ------------- Evolutions (4) 2000 Regions Visited (11) 2200 Robots Destroyed (138) 690 Value Destroyed (6112) 6112 Prototype IDs (29) 580 Alien Tech Used (0) 0 Bonus (2620) 2620 TOTAL SCORE: 14202 Bonus ------- High Alert Combat Kills 1282 Follower Combat Kills 378 Entered Garrisons 200 Used RIF Installer 500 Aligned with FarCom 300 Friendly Fire -40 Cogmind --------- Core Integrity 0/850 Matter 280/300 Energy 99/100 System Corruption 6% Temperature Cool (12) Movement Core (200) Ox3 Location -6/Factory Parts ------- > --- POWER (2) -------- (None) > --- PROPULSION (3) --- Armored Treads Armored Treads Armored Treads > --- UTILITY (7) ------ Centrium Medium Armor Plating > --- WEAPON (3) ------- Power Sword > --- INVENTORY (5) ---- Relay Coupler [Hunter] (20) Relay Coupler [Behemoth] (12) Improved Proton Missile Launcher PL-3XN's Ring of Power Peak State ------------ > --- POWER ------------ Light Fission Core Light Particle Reactor > --- PROPULSION ------- Biometal Medium Treads Biometal Medium Treads Compact Wheel > --- UTILITY ---------- Improved Cryofiber Web Advanced Heat Sink Huge Storage Unit Advanced Targeting Computer Advanced Powered Armor Advanced Powered Armor Advanced Remote Force Field > --- WEAPON ----------- Quantum Rifle Heavy Ion Cannon Hypervelocity Railgun > --- INVENTORY -------- Light Nuclear Core Advanced Treads Advanced Treads Advanced Heat Sink Coolant Injector Improved Particle Charger Improved Light Armor Plating Relay Coupler [Grunt] Relay Coupler [Sentry] Relay Coupler [Sentry] Relay Coupler [Hunter] Relay Coupler [Behemoth] Heavy Ion Cannon YOLO Cannon Improved Proton Missile Launcher CPS Tube [Rating: 96] Favorites ----------- Power Deuterium Engine Engine Deuterium Engine Power Core Light Fission Core Reactor Particle Reactor Propulsion Armored Treads Treads Armored Treads Wheel Compact Wheel Utility Hardlight Generator Device Hardlight Generator Storage Large Storage Unit Processor Advanced Targeting Computer Hackware Hacking Suite Protection Hardened Medium Armor Plating Weapon Enhanced Autogun Energy Gun Heavy Particle Gun Energy Cannon Plasma Cannon Ballistic Gun Enhanced Autogun Ballistic Cannon Assault Cannon Launcher Improved Proton Missile Launcher Special Weapon Mining Laser Slashing Weapon Power Sword Build | -11 -10 -10 -10 -9 -8 -8 -8 -8 -6 -6 -6 ------- Run | Yrd Mat Min Exi Min Mat Sto Rec Scr Fac Gar Fac Slots Evolved 8 | . . . . . 4 . . . 4 . . Power 1 | . . . . . . . . . 1 . . Propulsion 1 | . . . . . 1 . . . . . . Utility 5 | . . . . . 2 . . . 3 . . Weapon 1 | . . . . . 1 . . . . . . Parts Attached 114 | 7 . 1 5 1 20 11 4 7 10 20 28 Power 11 | 1 . . . . 1 . . . 1 3 5 Engine 6 | 1 . . . . 1 . . . 1 1 2 Core 3 | . . . . . . . . . . 1 2 Reactor 2 | . . . . . . . . . . 1 1 Propulsion 28 | 2 . 1 1 . 6 4 3 . 1 5 5 Treads 19 | 1 . 1 . . 6 2 . . 1 5 3 Leg . | . . . . . . . . . . . . Wheel 9 | 1 . . 1 . . 2 3 . . . 2 Hover . | . . . . . . . . . . . . Flight . | . . . . . . . . . . . . Utility 40 | 2 . . . 1 5 3 1 6 5 7 10 Device 18 | 1 . . . 1 2 . . 3 2 5 4 Storage 6 | 1 . . . . . 2 . 1 1 . 1 Processor 3 | . . . . . 1 . . . 2 . . Hackware 2 | . . . . . 1 . 1 . . . . Protection 11 | . . . . . 1 1 . 2 . 2 5 Artifact . | . . . . . . . . . . . . Weapon 35 | 2 . . 4 . 8 4 . 1 3 5 8 Energy Gun 8 | . . . . . 2 1 . . . 3 2 Energy Cannon 8 | . . . 1 . 1 . . 1 2 1 2 Ballistic Gun 12 | 2 . . 2 . 2 3 . . 1 1 1 Ballistic Cannon 2 | . . . . . 2 . . . . . . Launcher 1 | . . . . . . . . . . . 1 Special Weapon 2 | . . . . . 1 . . . . . 1 Impact Weapon . | . . . . . . . . . . . . Slashing Weapon 2 | . . . 1 . . . . . . . 1 Piercing Weapon . | . . . . . . . . . . . . Special Melee Weapon . | . . . . . . . . . . . . Unidentified Prototypes 9 | . . . 3 1 1 2 . . 1 . 1 Parts Lost 30 | . . . . . 1 . . . . 14 15 Power 6 | . . . . . . . . . . 2 4 Propulsion 7 | . . . . . . . . . . 4 3 Utility 12 | . . . . . . . . . . 6 6 Weapon 5 | . . . . . 1 . . . . 2 2 Highest Loss Streak 9 | . . . . . 1 . . . . 9 6 To Critical Strikes 1 | . . . . . . . . . . 1 . Average Backups 10 | 3 7 8 7 7 6 7 9 12 13 13 12 Power 1 | . 2 2 3 3 1 1 1 1 1 1 1 Propulsion 2 | 1 3 3 2 1 1 2 3 3 3 1 1 Utility 4 | . 1 . . . 2 3 3 4 3 5 6 Weapon 2 | . 1 3 2 2 1 1 2 3 4 4 2 Tool/Special . | . . . . . . . . . . . . Unused Backups 39 | . . 3 3 1 5 . . 3 2 10 12 Power 7 | . . . 2 . 3 . . . . 1 1 Propulsion 2 | . . . . 1 1 . . . . . . Utility 15 | . . . . . . . . 1 . 5 9 Weapon 15 | . . 3 1 . 1 . . 2 2 4 2 Tool/Special . | . . . . . . . . . . . . Average Slot Usage (%) 97 | . 100 100 97 100 96 99 99 99 95 98 91 Engine 8 | . 14 14 14 14 9 9 9 9 9 7 6 Reactor 1 | . . . . . . . . . . 4 2 Treads 16 | . 14 27 15 14 18 17 18 18 12 18 14 Wheel 6 | . 14 1 12 14 8 9 9 9 6 1 4 Device 11 | . 14 14 14 14 9 8 9 6 6 19 16 Storage 7 | . 14 14 14 14 9 9 9 9 6 6 4 Processor 4 | . . . . . 8 6 . . 11 6 5 Hackware 2 | . . . . . 8 . 8 4 . . . Protection 11 | . . . . . . 11 9 15 20 12 12 Energy Gun 7 | . . . . . 5 8 8 9 5 10 8 Energy Cannon 2 | . . . . . . . . . . 6 4 Ballistic Gun 12 | . 28 28 25 28 18 17 17 17 12 1 4 Peak Build Rating 96 | 7 7 7 27 18 42 37 49 49 58 94 96 Average Rating 48 | 5 7 7 9 10 25 31 37 38 49 79 77 On Entrance 26 | . 7 7 7 10 11 28 37 38 39 50 89 Naked Turns 1 | . . . . . . . . . . . 1 Heaviest Build 179 | 13 13 13 13 12 33 38 48 68 68 104 179 Greatest Support 92 | 20 16 40 40 16 60 40 16 12 12 92 92 Greatest Overweight (x) 11 | 1 . . . . 2 2 3 5 5 6 11 Average Overweight (x) 2 | . . . . . . 1 2 3 4 2 5 Largest Inventory Capacity 25 | 8 8 8 8 8 8 25 10 15 25 15 25 Average Capacity 12 | 7 8 8 8 8 8 8 10 13 15 15 17 Most Carried 25 | 7 8 8 8 8 8 10 10 15 15 15 25 Average Carried 11 | 3 7 8 7 7 7 8 9 13 14 14 13 Final Capacity 15 | 8 8 8 8 8 8 10 10 15 15 15 5 Final Carried 15 | 7 8 8 8 8 8 10 10 15 15 15 4 Class Distribution -------------------- 61% | Tank 12% | Gunner 9% | Mutant 8% | Skirmisher 6% | Scavenger-Tank Dominant Class ---------------- Mutant | -10/Materials Mutant | -10/Mines Mutant | -10/Exiles Mutant | -9/Mines Skirmisher | -8/Materials Tank | -8/Storage Tank | -8/Recycling Tank | -8/Scraptown Tank | -6/Factory Gunner | -6/Garrison Tank | -6/Factory Resources | -11 -10 -10 -10 -9 -8 -8 -8 -8 -6 -6 -6 ----------- Run | Yrd Mat Min Exi Min Mat Sto Rec Scr Fac Gar Fac Matter Collected 3331 | 360 74 92 . . 626 276 100 140 206 474 983 Remotely . | . . . . . . . . . . . . Salvage Created 6172 | 124 73 143 . . 763 489 131 . 577 1305 2567 Parts 297 | 8 4 14 . . 55 26 10 . 20 48 112 Haulers Intercepted 3 | . 1 . . . 1 1 . . . . . Recyclers Shooed 5 | . . . . . . . . . 3 . 2 Parts Field Recycled . | . . . . . . . . . . . . Retrieved Matter . | . . . . . . . . . . . . Parts Self-Destructed . | . . . . . . . . . . . . Prevented . | . . . . . . . . . . . . Kills | -11 -10 -10 -10 -9 -8 -8 -8 -8 -6 -6 -6 ------- Run | Yrd Mat Min Exi Min Mat Sto Rec Scr Fac Gar Fac Combat Hostiles Destroyed 105 | . . 5 . . 23 8 1 . 5 28 35 Guns 56 | . . 5 . . 17 8 1 . 4 8 13 Cannons 25 | . . . . . 3 . . . . 11 11 AOE 19 | . . . . . 3 . . . . 8 8 Classes Destroyed 16 | 3 1 2 . . 3 . . . 2 1 4 Worker 11 | 2 1 . . . 3 2 . . 1 . 2 Builder 2 | . . . . . . . . . 1 . 1 Tunneler 1 | 1 . . . . . . . . . . . Hauler 3 | . 1 . . . 1 1 . . . . . Recycler 8 | 1 . . . . . 2 1 . 2 . 2 Mechanic 4 | . . . . . . . . . . . 4 Watcher 4 | . . . . . 1 . . . . . 3 Swarmer 29 | . . 3 . . 13 4 . . . 5 4 Cutter 3 | . . . . . . . . . . 3 . Grunt 31 | . . 2 . . 3 3 . . . 9 14 Brawler 2 | . . . . . . . . . . . 2 Sentry 16 | . . . . . 5 . 1 . 1 7 2 Specialist 2 | . . . . . . . . . . . 2 Hunter 12 | . . . . . 2 1 . . 2 3 4 Programmer 9 | . . . . . . . . . 2 1 6 Heavy 1 | . . . . . . . . . . . 1 Best Kill Streak 13 | 3 1 3 . . 6 4 2 . 4 4 13 Combat Bots Only 9 | . . 3 . . 6 4 1 . 1 4 9 Max Kills in Single Turn 6 | 2 1 1 . . 4 2 1 . 2 4 6 Gunslinging 1 | . . . . . . 1 . . . . . Exploded 3 | . . . . . 3 . . . . 3 3 Melee . | . . . . . . . . . . . . Uniques/NPCs Destroyed . | . . . . . . . . . . . . Combat | -11 -10 -10 -10 -9 -8 -8 -8 -8 -6 -6 -6 -------- Run | Yrd Mat Min Exi Min Mat Sto Rec Scr Fac Gar Fac Hostile Shots Fired 1077 | . 4 51 . . 93 33 4 . 52 485 355 Missed 371 | . 3 15 . . 22 9 1 . 24 175 122 Hits 706 | . 1 36 . . 71 24 3 . 28 310 233 Melee 3 | . . . . . . . . . . 3 . Projectile 703 | . 1 36 . . 71 24 3 . 28 307 233 Critical Strikes 16 | . . 1 . . 1 . . . . 9 5 Actively Blocked 2 | . . . . . . . . . . . 2 Damage Taken 8409 | . 7 388 . . 611 192 35 . 402 3247 3527 Core 864 | . . 48 . . 47 18 . . 73 411 267 Absorbed by Shields 1406 | . . . . . 216 84 12 . 108 644 342 Redirected to Shielding 103 | . . . . . . 11 9 . 16 67 . Regen/Repaired (Parts) 573 | . . . . . . 154 . 419 . . . Core Remaining (%) 89 | 100 . . . 80 . . . 88 . . . Volleys Fired 353 | 15 6 20 . 1 36 28 3 . 26 121 97 Largest 3 | 2 2 2 . 2 3 3 3 . 3 3 3 Hottest 268 | 40 40 40 . 40 145 105 125 . 105 268 244 Shots Fired 740 | 30 12 40 . 2 94 57 8 . 42 226 229 Gun 543 | 30 12 40 . 2 81 56 7 . 38 123 154 Cannon 184 | . . . . . 9 1 1 . 4 103 66 Launcher 8 | . . . . . . . . . . . 8 Special 5 | . . . . . 4 . . . . . 1 Kinetic 286 | 30 12 40 . 2 75 29 5 . 19 11 63 Thermal 406 | . . . . . 5 28 3 . 23 190 157 Explosive . | . . . . . . . . . . . . Electromagnetic 47 | . . . . . 14 . . . . 25 8 Robot Hit Streak 15 | 6 5 6 . 4 8 8 2 . 11 15 14 Robot Miss Streak 6 | 4 3 2 . . 3 2 1 . 2 3 6 Penetration Max 1 | . . . . . . . . . . . 1 Secondary Targets 4 | . . . . . 1 3 . . . . . Max Gunslinging Chain 1 | . . . . . 1 1 . . . . . Shots Hit Robots 418 | 19 7 22 . 2 53 33 2 . 29 116 135 Core Hits 232 | 5 4 8 . . 43 19 2 . 16 53 82 Critical Kills 5 | . . . . . . . . . 1 . 4 Critical Parts Destroyed 12 | 1 . . . . . . . . . 1 10 Critical Strikes 23 | 1 . . . . . 1 1 . 1 3 16 Burn 4 | . . . . . . 1 1 . . 1 1 Meltdown 1 | . . . . . . . . . 1 . . Destroy 18 | 1 . . . . . . . . . 2 15 Melee Attacks . | . . . . . . . . . . . . Impact . | . . . . . . . . . . . . Slashing . | . . . . . . . . . . . . Piercing . | . . . . . . . . . . . . Sneak Attacks . | . . . . . . . . . . . . Combat Hostiles . | . . . . . . . . . . . . Follow-up Attacks . | . . . . . . . . . . . . Damage Inflicted 13548 | 268 104 267 . 21 1387 631 40 . 988 4282 5560 Guns 6087 | 268 104 267 . 21 769 631 40 . 566 1565 1856 Cannons 3527 | . . . . . 187 . . . 141 1745 1454 Explosions 3870 | . . . . . 367 . . . 281 972 2250 Melee . | . . . . . . . . . . . . Ramming 16 | . . . . . 16 . . . . . . Kinetic 2308 | 268 104 267 . 21 668 317 20 . 227 120 296 Thermal 10035 | . . . . . 498 314 20 . 761 4084 4358 Explosive . | . . . . . . . . . . . . Electromagnetic 1189 | . . . . . 205 . . . . 78 906 Impact . | . . . . . . . . . . . . Slashing . | . . . . . . . . . . . . Piercing . | . . . . . . . . . . . . Highest Corruption 6 | . . . . . . . . . . . 6 Average Corruption 3 | . . . . . . . . . . . 3 Corruption Purged . | . . . . . . . . . . . . Corruption Blocked . | . . . . . . . . . . . . Effects 44 | . . . . . . . . . . . 44 Message Errors 8 | . . . . . . . . . . . 8 Matter Fused 16 | . . . . . . . . . . . 16 Heat Flow Errors 5 | . . . . . . . . . . . 5 Energy Discharges 4 | . . . . . . . . . . . 4 Data Loss (minor) 5 | . . . . . . . . . . . 5 Data Loss (major) 1 | . . . . . . . . . . . 1 Misfires 3 | . . . . . . . . . . . 3 Weapon Failures 2 | . . . . . . . . . . . 2 Overload Shots . | . . . . . . . . . . . . Overflow Damage 308 | . . . . . 3 . . . 18 79 208 Projectiles 77 | . . . . . 3 . . . 6 20 48 Explosions 231 | . . . . . . . . . 12 59 160 Melee . | . . . . . . . . . . . . Knockbacks . | . . . . . . . . . . . . Impact . | . . . . . . . . . . . . Kinetic . | . . . . . . . . . . . . Secondary . | . . . . . . . . . . . . Self-Inflicted Damage 454 | . . . . . 28 . . . 61 126 239 Shots 11 | . . . . . 1 . . . 1 2 7 Rammed 3 | . . . . . 3 . . . . . . Targets Rammed 3 | . . . . . 3 . . . . . . Kicked . | . . . . . . . . . . . . Crushed . | . . . . . . . . . . . . Highest Temperature 485 | . . 26 . . 36 163 99 . 144 290 485 Average Temperature 68 | . . 8 . . 13 40 40 . 71 85 121 Received Heat Transfer 1794 | . . 147 . . 102 45 12 . . 891 597 Effects 4 | . . . . . . . . . . . 4 Shutdowns 3 | . . . . . . . . . . . 3 Matter Decay 1 | . . . . . . . . . . . 1 Siege Activations . | . . . . . . . . . . . . Martial Activations . | . . . . . . . . . . . . Shielding Activations . | . . . . . . . . . . . . Robots Disrupted . | . . . . . . . . . . . . Combat Hostiles . | . . . . . . . . . . . . Robots Corrupted 3 | . . . . . . . . . . . 3 Combat Hostiles 3 | . . . . . . . . . . . 3 Parts Fried 8 | . . . . . . . . . . . 8 Impact Corruptions . | . . . . . . . . . . . . Robots Melted 2 | . . . . . . . . . 1 1 . Combat Hostiles 2 | . . . . . . . . . 1 1 . Parts Melted 28 | . . . . . 1 1 1 . 2 17 6 Heat Transferred 13201 | . . . . . 570 666 111 . 1029 5577 5248 Parts Sabotaged . | . . . . . . . . . . . . Parts Stolen . | . . . . . . . . . . . . Parts Stripped . | . . . . . . . . . . . . Power Chain Reactions 4 | . . . . . 1 . . . . . 3 Alert | -11 -10 -10 -10 -9 -8 -8 -8 -8 -6 -6 -6 ------- Run | Yrd Mat Min Exi Min Mat Sto Rec Scr Fac Gar Fac Maximum Alert Level 5 | . . . . . 2 1 . . . 5 4 Low Security (%) 59 | 100 100 100 . 100 75 98 100 . 100 21 . Level 1 3 | . . . . . 15 1 . . . 7 . Level 2 6 | . . . . . 9 . . . . 19 4 Level 3 19 | . . . . . . . . . . 26 69 Level 4 8 | . . . . . . . . . . 16 26 Level 5 2 | . . . . . . . . . . 8 . High Security . | . . . . . . . . . . . . Max Security . | . . . . . . . . . . . . Peak Influence 1873 | 15 7 70 . . 502 201 72 . 86 1873 1379 Initial 982 | . . . . . . 201 24 . . 2 982 Average 386 | 1 1 28 . . 108 67 10 . 12 765 943 Influence Increases 4956 | 20 12 120 . . 696 276 195 . 209 2071 1357 Destroy 0b10 Robot/C 2320 | . . 100 . . 460 160 20 . 100 760 720 Destroy 0b10 Robot/NC 165 | 20 10 . . . 25 25 5 . 20 . 60 Destroy Leader 424 | . 2 20 . . 124 22 . . 40 30 186 Allied During Kill 84 | . . . . . . . . . . 74 10 Successful Hack 135 | . . . . . 16 23 10 . 14 28 44 Select Force Hacks 120 | . . . . . . . 120 . . . . Disable Machine 165 | . . . . . 15 45 15 . . . 90 Anti-Garrison Action 1000 | . . . . . . . . . . 1000 . Destroy Structure 303 | . . . . . 26 1 10 . 35 164 67 Lose Combat Pursuer 240 | . . . . . 30 . 15 . . 15 180 Influence Decreases 3579 | 20 12 120 . . 218 692 257 . 206 201 1853 Entered New Map 1207 | . . . . . . 277 38 . . 1 891 Time Decay 1832 | 20 12 120 . . 198 415 219 . 206 . 642 Lost Part 300 | . . . . . 10 . . . . 140 150 Lost Ally 90 | . . . . . 10 . . . . 60 20 Purge Threat 150 | . . . . . . . . . . . 150 Squads Dispatched 26 | . 2 . . . 2 1 . . 3 . 18 Investigation 1 | . 1 . . . . . . . . . . Extermination 7 | . . . . . . . . . 3 . 4 Reinforcement 10 | . 1 . . . 2 1 . . . . 6 Assault 5 | . . . . . . . . . . . 5 Garrison 3 | . . . . . . . . . . . 3 Intercept . | . . . . . . . . . . . . Searches Triggered . | . . . . . . . . . . . . Construction Impeded 4 | . . . . . 1 . . . . . 3 Haulers Reinforced 1 | . . . . . . . . . . . 1 Active Scanning Responses . | . . . . . . . . . . . . Cargo Convoy Interrupts 1 | . . . . . . . . . . . 1 Stealth | -11 -10 -10 -10 -9 -8 -8 -8 -8 -6 -6 -6 --------- Run | Yrd Mat Min Exi Min Mat Sto Rec Scr Fac Gar Fac Distress Signals 6 | . 1 . . . 3 1 . . . . 1 Communications Jammed . | . . . . . . . . . . . . Distress Signals . | . . . . . . . . . . . . Times Spotted 175 | . 6 5 . . 30 12 2 . 5 41 74 Peak Tracking Total 11 | . 5 3 . . 9 3 1 . 2 6 11 Tactical Retreats 9 | . . . . . 2 . 1 . . 1 5 Traps | -11 -10 -10 -10 -9 -8 -8 -8 -8 -6 -6 -6 ------- Run | Yrd Mat Min Exi Min Mat Sto Rec Scr Fac Gar Fac Traps Triggered 9 | . . . . . . 1 . . 1 7 . Indirectly . | . . . . . . . . . . . . Trap Hack Attempts . | . . . . . . . . . . . . Triggered . | . . . . . . . . . . . . Disarmed . | . . . . . . . . . . . . Reprogrammed . | . . . . . . . . . . . . Reused . | . . . . . . . . . . . . Traps Extracted . | . . . . . . . . . . . . Installed . | . . . . . . . . . . . . Triggered . | . . . . . . . . . . . . Machines | -11 -10 -10 -10 -9 -8 -8 -8 -8 -6 -6 -6 ---------- Run | Yrd Mat Min Exi Min Mat Sto Rec Scr Fac Gar Fac Machines Disabled 18 | . . . . . 1 3 1 . . 7 6 Max in Single Turn 4 | . . . . . 1 1 1 . . 1 4 Garrison Access 1 | . . . . . . . . . . . 1 Garrison Relay 6 | . . . . . . . . . . 6 . Machines Repaired . | . . . . . . . . . . . . Machines Dismantled . | . . . . . . . . . . . . Machines Sabotaged . | . . . . . . . . . . . . Overloaded Fab Kills . | . . . . . . . . . . . . Hacking | -11 -10 -10 -10 -9 -8 -8 -8 -8 -6 -6 -6 --------- Run | Yrd Mat Min Exi Min Mat Sto Rec Scr Fac Gar Fac Machines Accessed 51 | . 2 . 5 . 4 8 12 1 8 3 8 Terminals 31 | . 2 . . . 4 7 6 . 3 3 6 Fabricators 1 | . . . . . . . . . 1 . . Repair Stations 3 | . . . . . . 1 . . 1 . 1 Recycling Units 6 | . . . . . . . 4 . 2 . . Scanalyzers . | . . . . . . . . . . . . Garrison Access 2 | . . . . . . . . . 1 . 1 Total Hacks 201 | . 5 . 50 . 14 33 51 9 13 6 20 Successful 140 | . 1 . 50 . 10 15 39 9 4 3 9 Failed 61 | . 4 . . . 4 18 12 . 9 3 11 Catastrophic 10 | . 1 . . . . . 2 . 3 1 3 Database Lockouts . | . . . . . . . . . . . . Manual 75 | . 5 . 1 . 8 22 20 2 5 2 10 Terminals 91 | . 5 . . . 14 29 17 . 3 6 17 Fabricators 3 | . . . . . . . . . 3 . . Repair Stations 7 | . . . . . . 4 . . 2 . 1 Recycling Units 14 | . . . . . . . 10 . 4 . . Scanalyzers . | . . . . . . . . . . . . Garrison Access 3 | . . . . . . . . . 1 . 2 Terminal Hacks 109 | . . . 50 . 7 9 27 9 . 2 5 Record 83 | . . . 49 . 1 . 24 9 . . . Open Door 3 | . . . . . . 2 . . . 1 . Branch Access Points 4 | . . . . . 1 1 1 . . . 1 Emergency Access Points 1 | . . . . . . 1 . . . . . Terminal Index 2 | . . . . . . . 1 . . . 1 Unreport Threat 1 | . . . . . . . . . . . 1 Locate Traps 4 | . . . . . 1 2 . . . . 1 Maintenance Status 2 | . . . . . 1 . . . . . 1 Hauler Manifests 3 | . . . . . 2 1 . . . . . Zone Layout 4 | . . . . . 1 2 1 . . . . Patrol Navigation 1 | . . . . . . . . . . 1 . Proto ID Catalog 1 | . . . 1 . . . . . . . . Fabricator Hacks 1 | . . . . . . . . . 1 . . Network Status 1 | . . . . . . . . . 1 . . Repair Station Hacks 4 | . . . . . . 4 . . . . . Scan Component 2 | . . . . . . 2 . . . . . Repair 2 | . . . . . . 2 . . . . . Recycling Unit Hacks 6 | . . . . . . . 5 . 1 . . Report Inventory 4 | . . . . . . . 4 . . . . Retrieve Components 2 | . . . . . . . 1 . 1 . . Scanalyzer . | . . . . . . . . . . . . Garrison Access Hacks 3 | . . . . . . . . . 1 . 2 Unlock Access 1 | . . . . . . . . . 1 . . Seal Access 1 | . . . . . . . . . . . 1 Coupler Status 1 | . . . . . . . . . . . 1 Unauthorized Hacks 17 | . 1 . . . 3 2 7 . 1 1 2 Terminals 12 | . 1 . . . 3 2 3 . . 1 2 Assimilate 1 | . . . . . 1 . . . . . . Botnet 11 | . 1 . . . 2 2 3 . . 1 2 Fabricators 1 | . . . . . . . . . 1 . . Report 1 | . . . . . . . . . 1 . . Repair Stations . | . . . . . . . . . . . . Recycling Units 4 | . . . . . . . 4 . . . . Tunnel 4 | . . . . . . . 4 . . . . Scanalyzers . | . . . . . . . . . . . . Garrison Access . | . . . . . . . . . . . . Data Cores Recovered . | . . . . . . . . . . . . Used . | . . . . . . . . . . . . Hacking Detections 33 | . 2 . . . 3 8 6 . 6 2 6 Full Trace Events 4 | . 1 . . . . . 3 . . . . Feedback Events . | . . . . . . . . . . . . Feedback Blocked . | . . . . . . . . . . . . Robot Schematics Acquired . | . . . . . . . . . . . . Robots Built . | . . . . . . . . . . . . Authchips . | . . . . . . . . . . . . Time . | . . . . . . . . . . . . Total Robot Build Rating . | . . . . . . . . . . . . Part Schematics Acquired . | . . . . . . . . . . . . Parts Built . | . . . . . . . . . . . . Authchips . | . . . . . . . . . . . . Time . | . . . . . . . . . . . . Total Part Build Rating . | . . . . . . . . . . . . Parts Repaired 2 | . . . . . . 2 . . . . . Time 76 | . . . . . . 76 . . . . . Parts Recycled . | . . . . . . . . . . . . Recycled Matter . | . . . . . . . . . . . . Retrieved Matter . | . . . . . . . . . . . . Retrieved Components 10 | . . . . . . . 3 . 7 . . Parts Scanalyzed . | . . . . . . . . . . . . Part Schematics Acquired . | . . . . . . . . . . . . Parts Damaged . | . . . . . . . . . . . . Bothacking | -11 -10 -10 -10 -9 -8 -8 -8 -8 -6 -6 -6 ------------ Run | Yrd Mat Min Exi Min Mat Sto Rec Scr Fac Gar Fac Used RIF Installer 1 | . . . . . . . . . . 1 . Robots Hacked . | . . . . . . . . . . . . Non-combat . | . . . . . . . . . . . . Combat . | . . . . . . . . . . . . Robot Hacks Applied . | . . . . . . . . . . . . Relay Couplers Released 23 | . . . . . . . . . . 23 . Machine Destruction 23 | . . . . . . . . . . 23 . Fabnet Peak Effective % . | . . . . . . . . . . . . Robots Rewired 3 | . . . . . . . . . . 3 . Allies Hacked 1 | . . . . . . . . . . . 1 Hacks Repelled . | . . . . . . . . . . . . Allies | -11 -10 -10 -10 -9 -8 -8 -8 -8 -6 -6 -6 -------- Run | Yrd Mat Min Exi Min Mat Sto Rec Scr Fac Gar Fac Total Allies 6 | . . . . . 1 . . . . 5 . Largest Group 3 | . . . . . 1 . . . . 3 2 Highest-Rated Group 142 | . . . . . 10 . . . . 142 100 Highest-Rated Ally 51 | . . . . . 10 . . . . 51 51 Total Orders . | . . . . . . . . . . . . Ally Attacks 78 | . . . . . . . . . . 47 31 Total Damage 1406 | . . . . . . . . . . 1100 306 Kills 12 | . . . . . . . . . . 10 2 Allies Corrupted 1 | . . . . . . . . . . . 1 Allies Melted . | . . . . . . . . . . . . Intel | -11 -10 -10 -10 -9 -8 -8 -8 -8 -6 -6 -6 ------- Run | Yrd Mat Min Exi Min Mat Sto Rec Scr Fac Gar Fac Active Infowar (turns) 1544 | 10 83 267 361 332 491 . . . . . . Sensors 3 | . . . . 3 . . . . . . . Seismic 1541 | 10 83 267 361 329 491 . . . . . . Robot Analysis Total . | . . . . . . . . . . . . Derelict Logs Recovered . | . . . . . . . . . . . . Drone Launches . | . . . . . . . . . . . . Drone Recoveries . | . . . . . . . . . . . . Exploration | -11 -10 -10 -10 -9 -8 -8 -8 -8 -6 -6 -6 ------------- Run | Yrd Mat Min Exi Min Mat Sto Rec Scr Fac Gar Fac Turns Passed 14970 | 144 83 267 361 334 1466 1821 1176 2602 1608 2801 2307 Spaces Moved 7469 | 83 63 128 334 295 781 357 892 1774 764 1087 911 Core 209 | 8 . . . . . . . . . . 201 Treads 1337 | 2 . 127 17 . 191 3 . . . 806 191 Legs . | . . . . . . . . . . . . Wheels 5923 | 73 63 1 317 295 590 354 892 1774 764 281 519 Hover . | . . . . . . . . . . . . Flight . | . . . . . . . . . . . . Fastest Speed 50 | 50 100 100 100 100 100 115 120 120 150 145 50 Average Speed 153 | 98 100 159 103 100 137 124 125 144 164 209 189 Slowest Speed 330 | 160 100 160 160 100 240 240 135 165 165 237 330 Overloaded Moves . | . . . . . . . . . . . . Propulsion Burnouts . | . . . . . . . . . . . . Robots Hopped . | . . . . . . . . . . . . Potential Cave-ins 2 | . . . . . . . . . . 2 . Cave-ins Triggered . | . . . . . . . . . . . . Exploration Rate (%) 48 | 7 22 34 61 62 60 57 96 58 27 76 27 Regions Visited 11 Branch Regions 6 Pre-discovered Areas 5 | . . . 1 . . . 4 . . . . Known Exits Taken 3 | . . . . . 1 1 . . 1 . . Unknown Exits Taken 7 | 1 1 1 1 1 . . 1 1 . . . Scrap Searched 8 | . . 1 . . . . . 7 . . . Spaces Dug 52 | . . . . . 2 . 17 . 1 21 11 Terrain Destroyed 218 | . . . . . 22 . 17 . 33 91 55 Melee . | . . . . . . . . . . . . Projectile 45 | . . . . . 2 . 1 . 2 12 28 AOE 172 | . . . . . 20 . 16 . 31 79 26 Terrain Rammed . | . . . . . . . . . . . . Walls Destroyed . | . . . . . . . . . . . . Machines Disabled . | . . . . . . . . . . . . Actions | -11 -10 -10 -10 -9 -8 -8 -8 -8 -6 -6 -6 --------- Run | Yrd Mat Min Exi Min Mat Sto Rec Scr Fac Gar Fac Total 10367 | 112 71 154 354 332 1093 1694 947 1823 1079 1416 1292 Wait 2087 | . . . . 32 213 1275 35 15 248 72 197 Move 7458 | 82 62 127 333 294 780 356 891 1773 763 1086 911 Hop . | . . . . . . . . . . . . Pick Up 94 | 8 2 3 4 . 11 5 4 9 8 21 19 Fast Attach 69 | 6 . . 5 2 11 5 . 3 7 14 16 Attach 38 | 1 . . 1 . 2 1 4 1 4 12 12 Detach 12 | . . . . 1 2 . . 1 1 2 5 Swap 81 | . . 1 1 . 12 9 3 10 9 15 21 Drop 122 | . 1 3 10 2 23 13 7 11 13 25 14 Fire 353 | 15 6 20 . 1 36 28 3 . 26 121 97 Melee . | . . . . . . . . . . . . Ram . | . . . . . . . . . . . . Kick . | . . . . . . . . . . . . Crush 3 | . . . . . 3 . . . . . . Escape Stasis 14 | . . . . . . 2 . . . 12 . Rewire 36 | . . . . . . . . . . 36 . Trap . | . . . . . . . . . . . . Miscellaneous . | . . . . . . . . . . . . Route ------- -11/Scrapyard -10/Materials -10/Mines -10/Exiles -9/Mines -8/Materials (discovered 4 exits: [*Fac x2] / *Sto x2) -8/Storage -8/Recycling (discovered 2 exits: *Fac / *Scr) -8/Scraptown -6/Factory (discovered 3 exits: *Fac / *Low / Gar) -6/Garrison (discovered 3 exits: *Fac x3) -6/Factory (discovered 2 exits: Low x2) History --------- Turn | Location | Event 10 | -11/Scrapyard | Discovered new exit (range 14) 145 | -11/Scrapyard | Entered Materials 146 | -10/Materials | Met a group of wandering Federalists 211 | -10/Materials | Discovered new exit (range 7) 228 | -10/Materials | Entered Mines 251 | -10/Mines | Lost 3 allies 310 | -10/Mines | Build established: Mutant 480 | -10/Mines | Assembled infested the area 487 | -10/Mines | Deemed a non-threat by the Exiles lab entrance 489 | -10/Mines | Discovered new exit (range 5) 495 | -10/Mines | Entered Exiles 536 | -10/Exiles | Met 8R-AWN 553 | -10/Exiles | Met EX-HEX 592 | -10/Exiles | Met EX-DEC 596 | -10/Exiles | Learned location of Zion (-7) 663 | -10/Exiles | Met EX-BIN 677 | -10/Exiles | Aligned with FarCom system 678 | -10/Exiles | Given EX-Vault access code 710 | -10/Exiles | Opened EX-Vault 732 | -10/Exiles | Found Prototype Ballistic Gun 732 | -10/Exiles | Identified AWS/Gauss 736 | -10/Exiles | Found Prototype Energy Cannon 736 | -10/Exiles | Identified YOLO Cannon 741 | -10/Exiles | Found Prototype Slashing Weapon 741 | -10/Exiles | Identified Longsword +1 773 | -10/Exiles | Warned to stay clear of 0b10 Research branches 843 | -10/Exiles | Discovered new exit (range 12) 856 | -10/Exiles | Left Exiles lab with YOLO Cannon 856 | -10/Exiles | Entered Mines 912 | -9/Mines | Found a damaged Exp. Sensor Array with a note attached 915 | -9/Mines | Found Prototype Device 915 | -9/Mines | Identified Exp. Sensor Array 1182 | -9/Mines | Discovered new exit (range 9) 1190 | -9/Mines | Entered Materials 1190 | -8/Materials | Evolved 4 slots: Propulsion x1, Utility x2, Weapon x1 1930 | -8/Materials | Build established: Skirmisher 2122 | -8/Materials | Discovered new exit (range 4) 2188 | -8/Materials | Identified exit to Storage 2600 | -8/Materials | Discovered new exit (range 14) 2656 | -8/Materials | Entered Storage 2879 | -8/Storage | Build established: Tank 3646 | -8/Storage | Repaired Hardlight Generator 3686 | -8/Storage | Repaired Arm. Treads 3704 | -8/Storage | Identified exit to Recycling 4472 | -8/Storage | Used back door to open Recycling access 4477 | -8/Storage | Entered Recycling 4478 | -8/Recycling | Met a Zionite searching for Scraptown 4753 | -8/Recycling | Discovered new exit (range 15) 5596 | -8/Recycling | Scanned before Scraplab entrance 5615 | -8/Recycling | Entered Scraplab 5633 | -8/Recycling | Discovered new exit (range 3) 5653 | -8/Recycling | Entered Scraptown 5809 | -8/Scraptown | Heard Great Nut preacher, LISTEN AND RECITE! 6224 | -8/Scraptown | Discovered new exit (range 5) 6376 | -8/Scraptown | Visited CR-KLE's Repair Center 6415 | -8/Scraptown | Visited Bundlers 6741 | -8/Scraptown | Visited Shadow of the Wyrm 6792 | -8/Scraptown | Visited Junk Repository 6849 | -8/Scraptown | Turned away by UFD registrar 7215 | -8/Scraptown | Visited CPS Storage 7229 | -8/Scraptown | Visited Comm Corps 7323 | -8/Scraptown | Visited Awakened 7503 | -8/Scraptown | CR-KLE repaired 9 parts 8255 | -8/Scraptown | Entered Factory 8255 | -6/Factory | Evolved 4 slots: Power x1, Utility x3 8502 | -6/Factory | Discovered new exit (range 14) 8558 | -6/Factory | Identified exit to Factory 9809 | -6/Factory | Identified exit to Garrison 9824 | -6/Factory | Discovered new exit (range 6) 9832 | -6/Factory | Identified exit to Lower Caves 9863 | -6/Factory | Entered Garrison 10081 | -6/Garrison | Triggered checkpoint 10120 | -6/Garrison | Garrison Relay disabled 10393 | -6/Garrison | Heavy support dispatched to Factory 10543 | -6/Garrison | Triggered checkpoint 10657 | -6/Garrison | Found Adv. Powered Armor 10668 | -6/Garrison | Core integrity fell below 50% 10702 | -6/Garrison | Lost 9 parts (1p3n4u1w) 10713 | -6/Garrison | Found Adv. Powered Armor 10858 | -6/Garrison | Discovered new exit (range 9) 10897 | -6/Garrison | Triggered checkpoint 10949 | -6/Garrison | Triggered checkpoint 11008 | -6/Garrison | Garrison Relay disabled 11111 | -6/Garrison | Build established: Gunner 11243 | -6/Garrison | Triggered checkpoint 11275 | -6/Garrison | Triggered checkpoint 11346 | -6/Garrison | Discovered new exit (range 11) 11411 | -6/Garrison | Triggered checkpoint 11465 | -6/Garrison | Garrison Relay disabled 11481 | -6/Garrison | Rescued a captive Derelict 11482 | -6/Garrison | Rescued a captive Derelict 11643 | -6/Garrison | Discovered new exit (range 10) 11715 | -6/Garrison | Triggered checkpoint 11743 | -6/Garrison | Garrison Relay disabled 12010 | -6/Garrison | Garrison Relay disabled 12303 | -6/Garrison | Heavy support dispatched to Factory 12607 | -6/Garrison | Installed Relay Interface Framework 12664 | -6/Garrison | Entered Factory 12664 | -6/Factory | Accompanied by 2 allies 13042 | -6/Factory | Build established: Tank 13489 | -6/Factory | Garrison activated, responded to threat 13584 | -6/Factory | Cargo convoy interrupted 13881 | -6/Factory | Lost 3 parts (2n1u) 13961 | -6/Factory | Noticed a derelict Sapper rigging charges 14064 | -6/Factory | First assault squad dispatched 14192 | -6/Factory | Build established: Scavenger-Tank 14242 | -6/Factory | YOLO Cannon suddenly exploded 14243 | -6/Factory | Core integrity fell below 20% 14278 | -6/Factory | Lost 6 parts (1p1n2u2w) 14281 | -6/Factory | Destroyed 9 combat bots 14844 | -6/Factory | Released all parts (13) 14958 | -6/Factory | Found PL-3XN's Ring of Power 14971 | -6/Factory | Destroyed by G-67 Veteran with Plasma Rifle Last Messages --------------- (169,179) Lower Caves (92,16) Lower Caves Map updated. 14903_ System corrupted: Matter fused (-7). 14906_ Connecting with Terminal... 14913_ Acquired Power Sword. 14926_ Acquired Thermic Laser. 14928_ System corrupted: Matter fused (-6). 14949_ Acquired 78 matter. 14949_ U-05 Engineer lays Concrete. 14950_ Acquired Prototype Protection. 14950_ Identified Centrium Medium Armor Plating. 14951_ U-05 Engineer lays Concrete. 14951_ Dropped Thermic Laser. 14952_ Dropped Lgt. Angular Momentum Engine. 14954_ System corrupted: Energy discharge (-18). 14958_ Acquired PL-3XN's Ring of Power. 14967_ C-30 ARC bursts open, deploying its payload. 14967_ G-67 Veteran unfolds itself. 14967_ G-50 Soldier unfolds itself. Map ----- +----------------------------------------------------+ | "??# #?????????????????????????????????????????? | | ????# ##############+???????????????????????????? | | ?????# ????????????????????????? | | ###### ????????????????????????? | | """ ! ????????????????????????? | | ##### "Y" ?????????????????????????? | | ##### " " ?????????????????????????? | | ######+#??????????????????????????? | | [ #?????????????????????????????????? | | #?????????????????????????????????? | | #?????????????????????????????????? | | #?????????????????????????????????? | | """""" [ ######?????????????????????????????????? | | """""" #??????????????????????????????????????? | | """""" #??????????????????????????????????????? | | ?""""" #??????????????????????????????????????? | | ?""""" #??????????????????????????????????????? | | ?""""" #?###############??????????????????????? | | ?""""" #?# """"" """"" #??????????????????????? | | """""" #?# """"" """"" #??????????????????????? | | """""" #?# """ #??????????????????????? | | #?? ????????????????s??????? | | / #???? ! ?????????????????????????? | | #?????? * ???????%#??????????????????? | | #########+####### %#??????????????????? | | "gg ug%[* @ +??????????????????? | | ###### #### #???????????????>??? | | ######?????# #??# #??????????????????? | | ???????????# #??# ###########??????????????????? | | ???????????#+#??# #????????????????????????????? | | ????????????????# #????????????????????????????? | | ????????????????# #????????????????????????????? | | ????????????????# #????????????????????????????? | | ????????????????# #????????????????????????????? | | ????????????????# #????????????????????????????? | | ????????????????+ ????????????????????????????? | | ????????????????# ????????????????????????????? | | ????????????????# ????????????????????????????? | | ????????????????##+##????????????????????????????? | | ?????????????????????????????????????????????????? | | ?????????????????????????????????????????????????? | | ?????????????????????????????????????????????????? | | ?????????????????????????????????????????????????? | | ?????????????????????????????????????????????????? | | ?????????????????????????????????????????????????? | | ?????????????????????????????????????????????????? | | ?????????????????????????????????????????????????? | | | | | | | +----------------------------------------------------+ Best States ------------- Heat Dissipation 113 Coolant Potential 65 Energy Generation 36 Energy Capacity 530 Matter Stores 300 Matter Capacity 300 Sight Range 16 Terrain Scan Density 10 Base Temperature (-) 150 Armor Coverage 1150 Resistance: EM 25 Weapon Shielding 66 Evasion (%) 50 Targeting Accuracy 8 Recoil Reduction 3 Particle Charging 20 Salvage Targeting 1 Offensive Hacking 10 Defensive Hacking 10 Item Schematics ----------------- None Robot Schematics ------------------ None Fabricated ------------ Nothing Repaired ---------- Hardlight Generator | 56% | -8/Storage Arm. Treads | 53% | -8/Storage Alien Tech Used ----------------- None Achievements -------------- None Challenges ------------ None Game ------ Seed CouplerOmegaBlaster Manual? 0 Play Time 03:38:45 Cumulative 100.1 hours Start 2025.06.06 @ 21:36:30 End 2025.06.10 @ 22:05:20 Sessions 7 Manual Loads 0 Difficulty Rogue Special Mode None Game No. 38 Rogue 38 Adventurer 0 Explorer 0 Win Type - Total 4 Types 4/0/0/0/0/0/0/0/0/0 Lore% 35 Gallery% 44 Achievement% 46 Wizard Run 0 Options --------- Layout 0 ASCII 0 Keyboard 0 Movement Arrows Keybinds 0 Fullscreen 2 Font 18/Terminus Map View 76x50 Zoom Use 0% Tactical HUD 1 Map Filters NONE Filters NONE Steam 1 RUN: 6f2afac9-6006-4fc3-a6de-1e2e00df9854